fUSD/lending_fUSD_20260203
["ID","MTS","AMOUNT","RATE_DAILY","PERIOD"]
[404418358,1770124239786,-500.0,0.00013698,2]
[404418359,1770124239796,-500.0,0.00013698,2]
[404418360,1770124239805,-500.0,0.00013698,2]
[404418361,1770124239814,-500.0,0.00013698,2]
[404418362,1770124239823,-558.31479011,0.00013698,2]
[404418363,1770124239835,-500.0,0.00013698,2]
[404418364,1770124239844,-500.0,0.00013698,2]
[404418365,1770124239854,-500.0,0.00013698,2]
[404418366,1770124239863,-500.0,0.00013698,2]
[404418367,1770124239872,-340.45778603,0.00013698,2]
[404418368,1770124239881,-500.0,0.00013698,2]
[404418369,1770124239890,-509.06540724,0.00013698,2]
[404418370,1770124239899,-500.0,0.00013698,2]
[404418371,1770124239910,-500.0,0.00013698,2]
[404418372,1770124239919,-439.60873549,0.00013698,2]
[404418373,1770124239929,-500.0,0.00013698,2]
[404418374,1770124239939,-500.0,0.00013698,2]
[404418375,1770124239951,-500.0,0.00013698,2]
[404418376,1770124239961,-500.0,0.00013698,2]
[404418377,1770124239973,-545.58231824,0.00013698,2]
[404418378,1770124239982,-552.61203619,0.00013698,2]
[404418379,1770124239991,-500.0,0.00013698,2]
[404418380,1770124240002,-500.0,0.00013698,2]
[404418381,1770124240013,-500.0,0.00013698,2]
[404418382,1770124240024,-500.0,0.00013698,2]
[404418383,1770124240034,-500.0,0.00013698,2]
[404418384,1770124240043,-500.0,0.00013698,2]
[404418385,1770124240052,-500.0,0.00013698,2]
[404418386,1770124240061,-500.0,0.00013698,2]
[404418387,1770124240070,-371.76186134,0.00013698,2]
[404418388,1770124240079,-500.0,0.00013698,2]
[404418389,1770124240088,-500.0,0.00013698,2]
[404418390,1770124240097,-500.0,0.00013698,2]
[404418391,1770124240106,-438.97921379,0.00013698,2]
[404418392,1770124240115,-452.02134495,0.00013698,2]
[404418393,1770124240125,-199.38200897,0.00013698,2]
[404418394,1770124240135,-500.0,0.00013698,2]
[404418395,1770124240144,-500.0,0.00013698,2]
[404418396,1770124240153,-500.0,0.00013698,2]
[404418397,1770124240163,-500.0,0.00013698,2]
[404418398,1770124240173,-378.56522147,0.00013698,2]
[404418399,1770124240182,-500.0,0.00013698,2]
[404418400,1770124240191,-500.0,0.00013698,2]
[404418401,1770124240200,-500.0,0.00013698,2]
[404418402,1770124240209,-500.0,0.00013698,2]
[404418403,1770124240218,-500.0,0.00013698,2]
[404418404,1770124240228,-500.0,0.00013698,2]
[404418405,1770124240238,-500.0,0.00013698,2]
[404418406,1770124240247,-500.0,0.00013698,2]
[404418407,1770124240257,-500.0,0.00013698,2]
[404418408,1770124240266,-222.83714718,0.00013698,2]
[404418409,1770124240275,-9681.08,0.00013699,2]
[404418410,1770124240284,-200.0,0.00013699,2]
[404418411,1770124240293,-5177.5,0.00013699,2]
[404418412,1770124240302,-500.0,0.000137,2]
[404418413,1770124240311,-500.0,0.000137,2]
[404418414,1770124240320,-500.0,0.000137,2]
[404418415,1770124240329,-500.0,0.000137,2]
[404418416,1770124240338,-260.20893212,0.000137,2]
[404418417,1770124240348,-500.0,0.000137,2]
[404418418,1770124240359,-500.0,0.00014247,2]
[404418419,1770124240368,-1000.0,0.00014248,2]
[404418420,1770124240377,-1000.0,0.00014248,2]
[404418421,1770124240386,-500.0,0.00014248,2]
[404418422,1770124240395,-394.0,0.00014329,2]
[404418423,1770124240404,-160.0,0.00014346,2]
[404418424,1770124240413,-5177.5,0.00014384,2]
[404418425,1770124240422,-1613.0,0.00014426,2]
[404418426,1770124240432,-6453.0,0.00014426,2]
[404418427,1770124240442,-411.0,0.00014431,2]
[404418428,1770124240455,-500.0,0.00014575,2]
[404418429,1770124240465,-1600.0,0.00014662,2]
[404418430,1770124240474,-369.98194845,0.00014796,2]
[404418431,1770124240483,-495.7739334,0.00014796,2]
[404418432,1770124240493,-5177.5,0.00015068,2]
[404418433,1770124240503,-6516.67,0.00015445,2]
[404418434,1770124240512,-35766.0,0.00015661,2]
[404418435,1770124240524,-5177.5,0.00015753,2]
[404418436,1770124240535,-150.01448184,0.00015781,2]
[404418437,1770124240554,-2258.0,0.00015869,2]
[404418438,1770124240564,-3324.0,0.00015869,2]
[404418439,1770124240573,-1000.0,0.00015918,2]
[404418440,1770124240583,-5000.0,0.0001596,2]
[404418441,1770124240592,-256.701042,0.00016,2]
[404418442,1770124240602,-9999.99,0.00016116,2]
[404418443,1770124240611,-1000.0,0.00016291,7]
[404418444,1770124240622,-500.0,0.00016292,2]
[404418445,1770124240632,-1084.09055279,0.00016383,2]
[404418446,1770124240641,-457.87,0.00016438,2]
[404418447,1770124240650,-457.87,0.00016438,3]
[404418448,1770124240660,-457.87,0.00016438,4]
[404418449,1770124240669,-457.87,0.00016438,5]
[404418450,1770124240679,-457.87,0.00016438,6]
[404418451,1770124240688,-457.87,0.00016438,7]
[404418452,1770124240697,-457.87,0.00016438,8]
[404418453,1770124240706,-457.87,0.00016438,9]
[404418454,1770124240715,-457.87,0.00016438,10]
[404418455,1770124240725,-457.87,0.00016438,11]
[404418456,1770124240735,-457.87,0.00016438,12]
[404418457,1770124240745,-457.87,0.00016438,13]
[404418458,1770124240755,-457.87,0.00016438,14]
[404418459,1770124240765,-457.87,0.00016438,15]
[404418460,1770124240775,-457.87,0.00016438,16]
[404418461,1770124240784,-457.87,0.00016438,17]
[404418462,1770124240795,-457.87,0.00016438,18]
[404418463,1770124240804,-457.87,0.00016438,19]
[404418464,1770124240813,-457.87,0.00016438,20]
[404418465,1770124240822,-457.87,0.00016438,21]
[404418466,1770124240832,-457.87,0.00016438,21]
[404418467,1770124240841,-457.87,0.00016438,21]
[404418468,1770124240851,-457.87,0.00016438,21]
[404418469,1770124240860,-458.03207191,0.00016438,21]
[404418470,1770124240870,-500.0,0.00016438,2]
[404418471,1770124240879,-500.0,0.00016438,2]
[404418472,1770124240889,-330.22332732,0.00016438,2]
[404418473,1770124240898,-500.0,0.00016438,2]
[404418474,1770124240907,-500.0,0.00016438,2]
[404418475,1770124240916,-500.0,0.00016438,2]
[404418476,1770124240925,-500.0,0.00016438,2]
[404418477,1770124240935,-500.0,0.00016438,2]
[404418478,1770124240945,-500.0,0.00016438,2]
[404418479,1770124240955,-500.0,0.00016438,2]
[404418480,1770124240964,-500.0,0.00016438,2]
[404418481,1770124240973,-500.0,0.00016438,2]
[404418482,1770124240983,-500.0,0.00016438,2]
[404418483,1770124240992,-500.0,0.00016438,2]
[404418484,1770124241002,-500.0,0.00016438,2]
[404418485,1770124241011,-500.0,0.00016438,2]
[404418486,1770124241020,-500.0,0.00016438,2]
[404418487,1770124241029,-500.0,0.00016438,2]
[404418488,1770124241039,-500.0,0.00016438,2]
[404418489,1770124241050,-500.0,0.00016438,2]
[404418490,1770124241062,-500.0,0.00016438,2]
[404418491,1770124241072,-500.0,0.00016438,2]
[404418492,1770124241082,-500.0,0.00016438,2]
[404418493,1770124241092,-500.0,0.00016438,2]
[404418494,1770124241102,-500.0,0.00016438,2]
[404418495,1770124241112,-500.0,0.00016438,2]
[404418496,1770124241123,-500.0,0.00016438,2]
[404418497,1770124241133,-500.0,0.00016438,2]
[404418498,1770124241143,-500.0,0.00016438,2]
[404418499,1770124241153,-500.0,0.00016438,2]
[404418500,1770124241162,-369.38463744,0.00016438,2]
[404418501,1770124241172,-500.0,0.00016438,2]
[404418502,1770124241181,-500.0,0.00016438,2]
[404418503,1770124241191,-500.0,0.00016438,2]
[404418504,1770124241200,-500.0,0.00016438,2]
[404418505,1770124241209,-500.0,0.00016438,2]
[404418506,1770124241219,-500.0,0.00016438,2]
[404418507,1770124241228,-500.0,0.00016438,2]
[404418508,1770124241237,-500.0,0.00016438,2]
[404418509,1770124241247,-500.0,0.00016438,2]
[404418510,1770124241256,-500.0,0.00016438,2]
[404418511,1770124241266,-500.0,0.00016438,2]
[404418512,1770124241277,-500.0,0.00016438,2]
[404418513,1770124241287,-500.0,0.00016438,2]
[404418514,1770124241298,-500.0,0.00016438,2]
[404418515,1770124241308,-500.0,0.00016438,2]
[404418516,1770124241317,-500.0,0.00016438,2]
[404418517,1770124241328,-500.0,0.00016438,2]
[404418518,1770124241338,-500.0,0.00016438,2]
[404418519,1770124241347,-500.0,0.00016438,2]
[404418520,1770124241357,-500.0,0.00016438,2]
[404418521,1770124241368,-500.0,0.00016438,2]
[404418522,1770124241378,-500.0,0.00016438,2]
[404418523,1770124241388,-500.0,0.00016438,2]
[404418524,1770124241399,-4201.06013935,0.00016438,2]
[404418525,1770124241409,-4201.06013935,0.00016438,2]
[404418526,1770124241419,-4201.06013935,0.00016438,2]
[404418527,1770124241429,-4201.06013935,0.00016438,2]
[404418528,1770124241438,-4201.06013935,0.00016438,2]
[404418529,1770124241448,-4201.06013935,0.00016438,2]
[404418530,1770124241459,-4201.06013935,0.00016438,2]
[404418531,1770124241471,-4201.06013935,0.00016438,2]
[404418532,1770124241482,-4201.06013935,0.00016438,2]
[404418533,1770124241494,-4201.06013935,0.00016438,2]
[404418534,1770124241504,-4201.06013935,0.00016438,2]
[404418535,1770124241515,-4201.06013935,0.00016438,2]
[404418536,1770124241527,-4201.06013935,0.00016438,2]
[404418537,1770124241537,-4201.06013935,0.00016438,2]
[404418538,1770124241546,-4201.06013935,0.00016438,2]
[404418539,1770124241557,-4201.06013935,0.00016438,2]
[404418540,1770124241566,-4201.06013935,0.00016438,2]
[404418541,1770124241575,-4201.06013935,0.00016438,2]
[404418542,1770124241584,-4201.06013935,0.00016438,2]
[404418543,1770124241593,-4201.06013935,0.00016438,2]
[404418544,1770124241603,-4201.06013935,0.00016438,2]
[404418545,1770124241613,-4201.06013935,0.00016438,2]
[404418546,1770124241625,-4201.06013935,0.00016438,2]
[404418547,1770124241634,-4201.06013935,0.00016438,2]
[404418548,1770124241644,-4201.06013935,0.00016438,2]
[404418549,1770124241654,-4201.06013935,0.00016438,2]
[404418550,1770124241663,-4201.06013935,0.00016438,2]
[404418551,1770124241673,-4201.06013935,0.00016438,2]
[404418552,1770124241682,-4201.06013935,0.00016438,2]
[404418553,1770124241692,-4201.06013935,0.00016438,2]
[404418554,1770124241704,-4201.06013935,0.00016438,2]
[404418555,1770124241715,-4201.06013935,0.00016438,2]
[404418556,1770124241724,-4201.06013935,0.00016438,2]
[404418557,1770124241734,-4201.06013935,0.00016438,2]
[404418558,1770124241743,-4201.06013935,0.00016438,2]
[404418559,1770124241754,-4201.06013935,0.00016438,2]
[404418560,1770124241763,-4201.06013935,0.00016438,2]
[404418561,1770124241774,-4201.06013935,0.00016438,2]
[404418562,1770124241783,-4376.10431183,0.00016438,2]
[404418563,1770124241792,-4376.10431183,0.00016438,2]
[404418564,1770124241802,-5177.5,0.00016438,2]
[404418565,1770124241811,-200.0,0.00016438,2]
[404418566,1770124241820,-800.0,0.00016438,2]
[404418567,1770124241829,-160.0,0.0001644,3]
[404418568,1770124241840,-1000.0,0.00016515,2]
[404418569,1770124241849,-1000.0,0.00016527,2]
[404418570,1770124241858,-775.48,0.00016591,2]
[404418571,1770124241867,-30000.0,0.00016619,2]
[404418572,1770124242011,-164.0,0.0001672,2]
[404418573,1770124242045,-839.0,0.0001672,2]
[404418574,1770124242054,-200.0,0.00016792,2]
[404418575,1770124242063,-1054.28149444,0.00016795,2]
[404418576,1770124242072,-382.17,0.00016849,2]
[404418577,1770124242081,-239.0,0.00016849,2]
[404418578,1770124242090,-1054.28149444,0.00016877,2]
[404418579,1770124242099,-600.0,0.000169,6]
[404418580,1770124242109,-1054.28149444,0.00016932,2]
[404418581,1770124242118,-150.01448184,0.00016938,2]
[404418582,1770124242127,-1100.0,0.00016986,7]
[404418583,1770124242136,-1054.28149444,0.00017014,2]
[404418584,1770124242145,-2908.0,0.0001704,2]
[404418585,1770124242154,-1054.28149444,0.00017068,2]
[404418586,1770124242164,-500.0,0.00017086,2]
[404418587,1770124242173,-578.20924308,0.00017099,2]
[404418588,1770124242182,-200.0,0.00017099,2]
[404418589,1770124242191,-500.0,0.00017099,2]
[404418590,1770124242200,-500.0,0.00017099,2]
[404418591,1770124242209,-500.0,0.00017099,2]
[404418592,1770124242219,-500.0,0.00017099,2]
[404418593,1770124242229,-500.0,0.00017099,2]
[404418594,1770124242239,-322.6107,0.00017099,2]
[404418595,1770124242248,-500.0,0.00017099,2]
[404418596,1770124242258,-500.0,0.00017099,2]
[404418597,1770124242267,-500.0,0.00017099,2]
[404418598,1770124242275,-500.0,0.00017099,2]
[404418599,1770124242284,-500.0,0.00017099,2]
[404418600,1770124242293,-500.0,0.00017099,2]
[404418601,1770124242302,-174.61919141,0.00017099,2]
[404418602,1770124242311,-721.12765535,0.00017099,2]
[404418603,1770124242320,-277.35679052,0.00017099,2]
[404418604,1770124242329,-209.40437684,0.00017099,2]
[404418605,1770124242338,-1000.0,0.00017112,2]
[404418606,1770124242347,-839.0,0.00017132,2]
[404418607,1770124242356,-1054.28149444,0.00017151,2]
[404418608,1770124242365,-217.15233878,0.00017154,2]
[404418609,1770124242374,-1500.0,0.000172,2]
[404418610,1770124242383,-1054.28149444,0.00017205,2]
[404418611,1770124242392,-225.18697532,0.00017209,2]
[404418612,1770124242401,-1000.0,0.00017218,7]
[404418613,1770124242410,-1500.0,0.0001726,7]
[404418614,1770124242419,-1000.0,0.0001726,2]
[404418615,1770124242427,-233.51889341,0.00017264,2]
[404418616,1770124242436,-1054.28149444,0.00017288,2]
[404418617,1770124242446,-242.15909246,0.00017319,2]
[404418618,1770124242460,-151.89,0.00017323,2]
[404418619,1770124242470,-1054.28149444,0.00017342,2]
[404418620,1770124242480,-900.0,0.00017373,2]
[404418621,1770124242490,-213.0,0.00017373,2]
[404418622,1770124242499,-200.0,0.00017373,2]
[404418623,1770124242508,-150.0,0.00017373,2]
[404418624,1770124242517,-150.632,0.00017373,2]
[404418625,1770124242527,-272.463,0.00017373,2]
[404418626,1770124242536,-171.889,0.00017373,2]
[404418627,1770124242546,-170.0,0.00017373,2]
[404418628,1770124242556,-150.04,0.00017373,2]
[404418629,1770124242565,-150.0,0.00017373,2]
[404418630,1770124242574,-150.0,0.00017373,2]
[404418631,1770124242583,-150.08,0.00017373,2]
[404418632,1770124242592,-151.0,0.00017373,2]
[404418633,1770124242601,-3481.0,0.00017373,2]
[404418634,1770124242614,-1410.0,0.00017373,2]
[404418635,1770124242624,-1339.334,0.00017373,2]
[404418636,1770124242635,-625.826,0.00017373,2]
[404418637,1770124242645,-1271.0,0.00017373,2]
[404418638,1770124242655,-150.0,0.00017373,2]
[404418639,1770124242666,-917.0,0.00017373,2]
[404418640,1770124242677,-1205.0,0.00017373,2]
[404418641,1770124242687,-3253.0,0.00017373,2]
[404418642,1770124242697,-1316.0,0.00017373,2]
[404418643,1770124242707,-2471.026,0.00017373,2]
[404418644,1770124242717,-251.11897888,0.00017374,2]
[404418645,1770124242727,-1054.28149444,0.00017425,2]
[404418646,1770124242736,-260.4103811,0.00017429,2]
[404418647,1770124242746,-3133.0,0.00017456,2]
[404418648,1770124242755,-1054.28149444,0.00017479,2]
[404418649,1770124242764,-270.0455652,0.00017484,2]
[404418650,1770124242774,-800.0,0.00017534,7]
[404418651,1770124242783,-1000.0,0.00017534,2]
[404418652,1770124242793,-280.03725112,0.00017539,2]
[404418653,1770124242802,-1054.28149444,0.00017562,2]
[404418654,1770124242812,-290.39862941,0.00017594,2]
[404418655,1770124242822,-1500.0,0.000176,2]
[404418656,1770124242833,-600.0,0.000176,6]
[404418657,1770124242842,-152.0,0.00017639,3]
[404418658,1770124242851,-1208.52677438,0.0001764,2]
[404418659,1770124242860,-200.0,0.00017647,2]
[404418660,1770124242869,-181.08010149,0.00017647,2]
[404418661,1770124242878,-287.61899177,0.00017647,2]
[404418662,1770124242887,-301.1433787,0.00017649,2]
[404418663,1770124242896,-2836.0,0.0001768,2]
[404418664,1770124242907,-382.17,0.00017697,2]
[404418665,1770124242918,-3393.83018374,0.000177,2]
[404418666,1770124242928,-600.0,0.000177,6]
[404418667,1770124242936,-1000.0,0.00017709,2]
[404418668,1770124242945,-463.0,0.00017741,2]
[404418669,1770124242954,-463.0,0.00017749,2]
[404418670,1770124242964,-150.0,0.0001775,7]
[404418671,1770124242973,-374.613885,0.0001775,7]
[404418672,1770124242982,-599.227771,0.0001775,7]
[404418673,1770124242991,-823.841657,0.0001775,7]
[404418674,1770124243000,-1048.455543,0.0001775,7]
[404418675,1770124243009,-1273.069429,0.0001775,7]
[404418676,1770124243018,-1497.683314,0.0001775,7]
[404418677,1770124243027,-1722.2972,0.0001775,7]
[404418678,1770124243036,-1946.911086,0.0001775,7]
[404418679,1770124243045,-2171.524972,0.0001775,7]
[404418680,1770124243054,-463.0,0.00017775,2]
[404418681,1770124243064,-310.0,0.00017778,2]
[404418682,1770124243073,-150.0,0.00017779,7]
[404418683,1770124243082,-658.611442,0.00017779,7]
[404418684,1770124243092,-1167.222885,0.00017779,7]
[404418685,1770124243101,-1675.834327,0.00017779,7]
[404418686,1770124243110,-2184.44577,0.00017779,7]
[404418687,1770124243120,-2693.057212,0.00017779,7]
[404418688,1770124243129,-3201.668655,0.00017779,7]
[404418689,1770124243138,-3710.280097,0.00017779,7]
[404418690,1770124243148,-4218.89154,0.00017779,7]
[404418691,1770124243157,-4727.502982,0.00017779,7]
[404418692,1770124243167,-463.0,0.00017788,2]
[404418693,1770124243177,-1500.0,0.000178,2]
[404418694,1770124243186,-600.0,0.000178,6]
[404418695,1770124243196,-1000.0,0.00017808,2]
[404418696,1770124243205,-5888.0,0.00017822,2]
[404418697,1770124243214,-463.0,0.00017832,2]
[404418698,1770124243223,-5888.0,0.00017844,2]
[404418699,1770124243232,-200.0,0.00017855,2]
[404418701,1770124243241,-200.0,0.00017856,2]
[404418702,1770124243250,-5888.0,0.00017857,2]
[404418703,1770124243260,-25000.0,0.00017882,3]
[404418704,1770124243271,-500.0,0.0001789,2]
[404418705,1770124243281,-25000.0,0.00017891,3]
[404418706,1770124243291,-5000.0,0.000179,2]
[404418707,1770124243300,-25000.0,0.000179,3]
[404418708,1770124243309,-21955.22439559,0.000179,3]
[404418709,1770124243318,-269.09178599,0.000179,2]
[404418710,1770124243327,-1170.0,0.000179,6]
[404418711,1770124243338,-500.0,0.000179,2]
[404418712,1770124243347,-500.0,0.000179,2]
[404418713,1770124243356,-500.0,0.000179,2]
[404418714,1770124243365,-500.0,0.000179,2]
[404418715,1770124243374,-500.0,0.000179,2]
[404418716,1770124243383,-500.0,0.000179,2]
[404418717,1770124243392,-500.0,0.000179,2]
[404418718,1770124243401,-500.0,0.000179,2]
[404418719,1770124243412,-500.0,0.000179,2]
[404418720,1770124243422,-500.0,0.000179,2]
[404418721,1770124243432,-500.0,0.000179,2]
[404418722,1770124243442,-500.0,0.000179,2]
[404418723,1770124243455,-500.0,0.000179,2]
[404418724,1770124243465,-500.0,0.000179,2]
[404418725,1770124243475,-500.0,0.000179,2]
[404418726,1770124243484,-500.0,0.000179,2]
[404418727,1770124243494,-329.15243557,0.000179,2]
[404418728,1770124243504,-19499.0,0.000179,2]
[404418729,1770124243514,-463.0,0.00017913,2]
[404418730,1770124243524,-300.0,0.00017947,2]
[404418731,1770124243534,-180201.6607965,0.00017988,2]
[404418732,1770124243543,-4667.3348798,0.00017988,2]
[404418733,1770124243552,-620.18668,0.00017988,2]
[404418734,1770124243562,-13381.8179593,0.00017988,2]
[404418735,1770124243571,-584839.0627627,0.00017988,2]
[404418736,1770124243580,-151.0,0.00017997,2]
[404418737,1770124243590,-300.0,0.00017999,2]
[404418738,1770124243600,-300.0,0.00017999,2]
[404418739,1770124243610,-210.0,0.00017999,2]
[404418740,1770124243619,-150.0,0.00017999,2]
[404418741,1770124243629,-317149.95472705,0.00018,2]
[404418742,1770124243904,-4791.34137138,0.00018,2]
[404418743,1770124243919,-2774.8928558,0.00018,2]
[404418744,1770124243934,-463916.07680319,0.00018,2]
[404418745,1770124243944,-187974.3303,0.00018,2]
[404418746,1770124243955,-825.89185212,0.00018,2]
[404418747,1770124243969,-20256.22299489,0.00018,2]
[404418748,1770124243980,-588.0,0.00018,2]
[404418749,1770124244333,-400.20985138,0.00011442,2]
[404418750,1770124244348,-2054.25232179,0.00011442,2]
[404418751,1770124244358,-568.0,0.00017373,2]
[404418752,1770124244367,-23710.41430937,0.00018,2]
[404418753,1770124244379,-29302.33068823,0.00018,2]
[404418754,1770124244389,-44606.91774774,0.00018,2]
[404418755,1770124244828,-9053.4714088,8.959e-05,2]
[404418757,1770124245746,-946.5285912,8.959e-05,2]
[404418758,1770124245756,-2454.46217317,0.00012734,2]
[404418759,1770124245766,-315.0,0.00015693,2]
[404418760,1770124245776,-3426.89639485,0.00018,2]
[404418762,1770124745118,165.0,0.00021,30]
[404418763,1770124809354,198.0,0.00020349,120]
[404418764,1770124934296,-300.0,8.337e-05,2]
[404418765,1770124934325,-250.0,8.337e-05,2]
[404418766,1770124934354,-300.0,8.337e-05,2]
[404418767,1770124934555,-5880.59875758,8.338e-05,2]
[404418768,1770124937105,-10000.01,8.338e-05,2]
[404418769,1770124940430,-3289.70124242,8.338e-05,2]
[404418770,1770125132827,216.69,8.069e-05,2]
[404418771,1770125141446,9783.32,8.01e-05,2]
[404418772,1770125141467,216.7,8.01e-05,2]
[404418773,1770125267119,617.47,7.957e-05,2]
[404418774,1770125293616,500.0,7.934e-05,2]
[404418777,1770125379158,1852.42,8.005e-05,2]
[404418792,1770125431646,-250.0,8.422e-05,2]
[404418794,1770125431656,-300.0,8.437e-05,2]
[404418795,1770125431665,-636.5106101,8.451e-05,2]
[404418796,1770125431711,-815.82400348,8.451e-05,2]
[404418797,1770125431722,-594.61795665,8.451e-05,2]
[404418798,1770125431733,-271.414428,8.451e-05,2]
[404418799,1770125431744,-2021.43300177,8.451e-05,2]
[404418800,1770125431754,-151.0,8.597e-05,2]
[404418801,1770125431764,-300.0,8.597e-05,2]
[404418802,1770125431774,-183.23750393,8.597e-05,2]
[404418803,1770125431783,-300.0,8.598e-05,2]
[404418804,1770125431792,-300.0,8.598e-05,2]
[404418805,1770125431802,-1200.0,8.598e-05,2]
[404418806,1770125431811,-150.0,8.598e-05,2]
[404418807,1770125431823,-300.0,8.598e-05,2]
[404418808,1770125431832,-277.99537648,8.599e-05,2]
[404418809,1770125431842,-500.0,8.599e-05,2]
[404418810,1770125431851,-219.64541716,8.599e-05,2]
[404418811,1770125431862,-500.0,8.599e-05,2]
[404418812,1770125431871,-500.0,8.599e-05,2]
[404418813,1770125431881,-500.0,8.599e-05,2]
[404418814,1770125431891,-373.79103677,8.599e-05,2]
[404418815,1770125431901,-500.0,8.599e-05,2]
[404418816,1770125431910,-500.0,8.599e-05,2]
[404418817,1770125431919,-472.96179235,8.599e-05,2]
[404418818,1770125431929,-500.0,8.599e-05,2]
[404418819,1770125431938,-500.0,8.599e-05,2]
[404418820,1770125431948,-500.0,8.599e-05,2]
[404418822,1770125431958,-500.0,8.599e-05,2]
[404418824,1770125431966,-500.0,8.599e-05,2]
[404418826,1770125431976,-500.0,8.599e-05,2]
[404418827,1770125431985,-500.0,8.599e-05,2]
[404418829,1770125431994,-500.0,8.599e-05,2]
[404418831,1770125432003,-500.0,8.599e-05,2]
[404418833,1770125432012,-500.0,8.599e-05,2]
[404418835,1770125432022,-500.0,8.599e-05,2]
[404418837,1770125432030,-500.0,8.599e-05,2]
[404418839,1770125432039,-500.0,8.599e-05,2]
[404418841,1770125432049,-75885.87558227,8.6e-05,2]
[404418843,1770125432060,-699.36702806,8.6e-05,2]
[404418845,1770125432074,-2491.59768231,8.6e-05,2]
[404418847,1770125432086,-1940.62432845,8.6e-05,2]
[404418848,1770125432119,-462.1300956,8.6e-05,2]
[404418849,1770125432130,-1075.43,8.6e-05,2]
[404418850,1770125432142,-869.56,8.6e-05,2]
[404418851,1770125432157,-951.09995283,8.6e-05,2]
[404418854,1770125437648,-585.12740737,8.6e-05,2]
[404418855,1770125437660,-3415039.18792311,8.6e-05,2]
[404418856,1770125437670,-400.0,8.6e-05,3]
[404418857,1770125437679,-11691.28816549,8.656e-05,2]
[404418858,1770125437688,-2544.7096,8.659e-05,2]
[404418859,1770125437698,-4122.6247,8.659e-05,2]
[404418860,1770125437708,-2617.0576,8.659e-05,2]
[404418861,1770125437718,-7798.7438,8.659e-05,2]
[404418862,1770125437727,-150.99,8.699e-05,2]
[404418863,1770125437737,-6484.12,8.699e-05,2]
[404418864,1770125437746,-999.99,8.699e-05,2]
[404418865,1770125437757,-9999.99,8.699e-05,2]
[404418866,1770125437766,-299.99,8.699e-05,2]
[404418867,1770125437776,-9999.99,8.7e-05,2]
[404418868,1770125437787,-150.99,8.7e-05,2]
[404418869,1770125437796,-900.0,8.7e-05,3]
[404418870,1770125437806,-634.04,8.74e-05,2]
[404418871,1770125437816,-1450.68444737,8.741e-05,2]
[404418872,1770125437827,-389.0,8.741e-05,2]
[404418873,1770125437839,-2894.063,8.758e-05,2]
[404418874,1770125437848,-277.85,8.758e-05,2]
[404418875,1770125437859,-1029.86,8.758e-05,2]
[404418876,1770125437870,-10000.0,8.759e-05,2]
[404418877,1770125437880,-183.0,8.759e-05,2]
[404418879,1770125437890,-204.0,8.776e-05,2]
[404418881,1770125437900,-489.0,8.794e-05,2]
[404418883,1770125437910,-151.0,8.797e-05,2]
[404418885,1770125437919,-1400.0,8.8e-05,3]
[404418887,1770125437929,-418.0,8.811e-05,2]
[404418889,1770125437939,-461.0,8.829e-05,2]
[404418891,1770125437948,-399.0,8.846e-05,2]
[404418893,1770125437958,-1000000.0,8.859e-05,2]
[404418895,1770125437969,-452.0,8.864e-05,2]
[404418897,1770125437978,-158.0,8.881e-05,2]
[404418899,1770125437987,-1900.0,8.9e-05,3]
[404418901,1770125437997,-33292.3487,8.959e-05,2]
[404418903,1770125438006,-2400.0,9e-05,3]
[404418905,1770125438015,-1029.86,9.032e-05,2]
[404418907,1770125438024,-12882.18,9.099e-05,2]